bitfinex-derivatives/quotes_ETHF0:USTF0_20240826
["timestamp","ask_amount","ask_price","bid_price","bid_amount"]
[1724687177480,0.36659,2727.0,2726.8,7.2924]
[1724687177887,0.0028255,2727.2,2726.8,7.2924]
[1724687178191,0.3666,2727.0,2726.8,3.6252]
[1724687178596,0.3666,2727.0,2726.8,7.2924]
[1724687178784,0.3666,2727.0,2726.8,7.65902]
[1724687178984,0.3666,2726.9,2726.8,7.2924]
[1724687179178,0.3666,2726.9,2726.8,6.833]
[1724687180490,0.36659,2727.1,2726.8,6.833]
[1724687180688,0.36659,2727.1,2726.9,0.3666]
[1724687180884,0.9192555,2727.2,2726.8,6.833]
[1724687181185,0.3666,2726.9,2726.8,6.833]
[1724687181387,0.3666,2727.0,2726.8,7.19962]
[1724687181888,0.9192555,2727.2,2726.8,6.833]
[1724687181889,0.0028255,2727.2,2726.8,6.833]
[1724687182084,0.0028255,2727.2,2727.1,3.53658]
[1724687182390,0.00416266,2727.9,2727.4,0.36653]
[1724687182586,0.3665,2727.7,2727.6,3.17]
[1724687183092,0.36651,2727.6,2727.5,0.8552]
[1724687183294,0.36918876,2727.6,2727.5,0.8552]
[1724687183590,1.28546876,2727.6,2727.5,0.8552]
[1724687183795,1.28546876,2727.6,2727.5,0.4383]
[1724687184186,2.19914,2727.5,2727.4,0.00550691]
[1724687184790,10.86554,2727.5,2727.4,0.00550691]
[1724687185198,10.86554,2727.5,2727.4,6.91e-06]
[1724687185395,12.69817,2727.5,2727.4,6.91e-06]
[1724687185591,15.09785087,2727.5,2727.4,6.91e-06]
[1724687186193,10.86554,2727.5,2727.4,6.91e-06]
[1724687186390,5.86554,2727.5,2727.4,6.91e-06]
[1724687186591,10.86554,2727.5,2727.4,6.91e-06]
[1724687187090,5.86554,2727.5,2727.4,6.91e-06]
[1724687187288,10.86554,2727.5,2727.4,6.91e-06]
[1724687187485,5.86554,2727.5,2727.4,6.91e-06]
[1724687187685,1.28283,2727.5,2727.4,6.91e-06]
[1724687187900,0.36652,2727.5,2727.4,6.91e-06]
[1724687188499,1.28283,2727.5,2727.4,6.91e-06]
[1724687189499,0.36652,2727.5,2727.4,6.91e-06]
[1724687189800,1.28283,2727.5,2727.4,6.91e-06]
[1724687193496,2.19914,2727.5,2727.4,6.91e-06]
[1724687194595,5.86554,2727.5,2727.4,6.91e-06]
[1724687194799,10.86554,2727.5,2727.4,6.91e-06]
[1724687194998,11.12894,2727.5,2727.4,6.91e-06]
[1724687195498,19.11315087,2727.5,2727.4,6.91e-06]
[1724687195701,16.71347,2727.5,2727.4,6.91e-06]
[1724687196202,16.72695133,2727.5,2727.4,6.91e-06]
[1724687196498,16.72695142,2727.5,2727.4,6.91e-06]
[1724687196814,16.71347,2727.5,2727.4,6.91e-06]
[1724687197295,16.72695154,2727.5,2727.4,6.91e-06]
[1724687197901,20.16995154,2727.5,2727.4,6.91e-06]
[1724687198901,32.21488296,2727.5,2727.4,6.91e-06]
[1724687199400,29.33469068,2727.5,2727.4,6.91e-06]
[1724687199602,32.21488296,2727.5,2727.4,6.91e-06]
[1724687200301,29.33469068,2727.5,2727.4,6.91e-06]
[1724687200599,32.21488296,2727.5,2727.4,6.91e-06]
[1724687200794,0.36667,2726.4,2726.3,0.8772]
[1724687200989,1.28335,2726.4,2726.3,0.8772]
[1724687201998,4.95135,2726.4,2726.3,0.8772]
[1724687204603,5.86803,2726.4,2726.3,0.4423]
[1724687205398,2.20012,2726.3,2726.2,0.0040234]
[1724687205594,5.86812,2726.3,2726.2,0.0040234]
[1724687205804,15.90936,2726.3,2726.2,3.4e-06]
[1724687206004,7.70171,2726.2,2726.1,3.1e-07]
[1724687206206,12.70171,2726.2,2726.1,3.1e-07]
[1724687207009,7.70171,2726.2,2726.1,0.00281773]
[1724687207201,5.8682,2726.2,2726.1,0.00281773]
[1724687207909,0.3667,2726.2,2726.1,0.00281773]
[1724687208109,1.28345,2726.2,2726.1,0.00281773]
[1724687208305,1.28345,2726.2,2726.1,0.86521773]
[1724687209013,4.95145,2726.2,2726.1,0.86521773]
[1724687209401,1.28345,2726.2,2726.1,0.86521773]
[1724687209804,4.95145,2726.2,2726.1,0.86521773]
[1724687210702,5.8682,2726.2,2726.1,0.86521773]
[1724687211305,5.8682,2726.2,2726.1,0.42201773]
[1724687211707,2.2002,2726.2,2726.1,0.42201773]
[1724687212707,1.28345,2726.2,2726.1,0.42201773]
[1724687215710,3.2078,2726.3,2726.1,0.42201773]
[1724687216013,3.57448,2726.3,2726.2,0.4561]
[1724687216921,0.36668,2726.4,2726.2,0.8228]
[1724687217213,0.36668,2726.4,2726.3,0.36668]
[1724687217214,0.36667,2726.4,2726.3,0.36668]
[1724687217520,0.00550691,2726.5,2726.2,4.49079]
[1724687217816,0.36668,2726.3,2726.2,0.82279]
[1724687218314,0.36668,2726.3,2726.2,4.49079]
[1724687219117,0.36668,2726.3,2726.2,4.1241]
[1724687220721,1.2834,2726.3,2726.2,0.4561]
[1724687220912,2.2002,2726.2,2726.1,3.62981773]
[1724687221421,2.2002,2726.2,2726.1,0.42201773]
[1724687221422,5.8682,2726.2,2726.1,0.42201773]
[1724687221622,10.8682,2726.2,2726.1,0.00281773]
[1724687221827,10.8682,2726.2,2726.1,7.73e-06]
[1724687221828,23.35277492,2726.2,2726.1,7.73e-06]
[1724687222122,27.6777672,2726.2,2724.5,3.2078]
[1724687222419,0.3669,2724.8,2724.6,1.2847]
[1724687222622,0.9171,2725.2,2724.6,1.2847]
[1724687222821,0.9171,2725.2,2724.6,1.29020691]
[1724687222822,0.92260691,2725.2,2724.6,1.29020691]
[1724687223019,0.00832139,2725.2,2724.6,1.29493555]
[1724687223218,0.00832139,2725.2,2724.8,3.53688]
[1724687223415,0.00832139,2725.2,2724.9,0.36687]
[1724687223609,0.00832139,2725.2,2724.8,3.17]
[1724687223817,0.37516139,2725.2,2724.8,3.17]
[1724687224124,0.00832139,2725.2,2724.6,1.29493555]
[1724687224321,0.00832139,2725.2,2724.8,0.36688]
[1724687224823,0.00832139,2725.2,2724.7,0.36689]
[1724687225023,0.00832139,2725.2,2724.6,1.66184555]
[1724687225226,0.00832139,2725.2,2724.6,1.29493555]
[1724687225524,0.36689,2724.8,2724.6,1.29493555]
[1724687225718,0.00832139,2725.2,2724.6,1.29493555]
[1724687225719,0.3669,2724.7,2724.6,1.29493555]
[1724687225916,0.36689,2724.8,2724.6,1.29493555]
[1724687226316,0.3669,2724.7,2724.6,1.29493555]
[1724687226723,4.0373,2724.7,2724.6,0.01023555]
[1724687227615,4.95456,2724.7,2724.6,0.01023555]
[1724687228128,9.95456,2724.7,2724.6,0.01023555]
[1724687229628,4.0373,2724.7,2724.6,0.01023555]
[1724687229824,3.2078,2724.9,2724.6,0.01023555]
[1724687230025,0.36689,2724.8,2724.6,0.01023555]
[1724687230327,3.2078,2724.9,2724.6,0.37714555]
[1724687230533,3.2078,2724.9,2724.7,0.4315]
[1724687230732,0.00832139,2725.2,2724.7,0.4315]
[1724687230733,0.37515139,2725.2,2724.7,5.3283]
[1724687230919,0.37515139,2725.2,2724.7,1.6587]
[1724687231120,0.00832139,2725.2,2724.8,0.36689]
[1724687231320,0.00832139,2725.2,2724.7,1.65869]
[1724687231523,0.36685,2725.1,2724.7,1.2918]
[1724687231721,0.37516139,2725.2,2724.7,1.6587]
[1724687232120,0.36685,2725.1,2724.7,1.6587]
[1724687232519,0.37516139,2725.2,2724.8,0.36688]
[1724687232733,0.00832139,2725.2,2724.8,0.36688]
[1724687233130,0.00832139,2725.2,2724.9,0.36687]
[1724687233332,0.00832139,2725.2,2725.1,3.2078]
[1724687233724,0.00832139,2725.2,2725.1,6.8774]
[1724687233920,0.37516139,2725.2,2724.7,4.86649]
[1724687234131,0.00832139,2725.2,2724.7,4.4996]
[1724687234335,0.36685,2725.1,2724.7,4.8665]
[1724687235230,0.37516139,2725.2,2724.8,0.36688]
[1724687235432,0.00832139,2725.2,2724.8,0.36688]
[1724687235732,0.36686,2725.0,2724.7,4.4996]
[1724687235932,0.36688,2724.9,2724.7,4.4996]
[1724687236333,0.36689,2724.8,2724.7,4.4996]
[1724687237028,0.91715,2725.1,2724.7,4.4996]
[1724687237029,0.36688,2724.9,2724.7,4.4996]
[1724687237231,0.91715,2725.1,2724.7,4.4996]
[1724687237537,0.00832139,2725.2,2725.0,0.36686]
[1724687237732,0.00832139,2725.2,2725.1,0.36685]
[1724687238134,0.37515139,2725.2,2725.1,3.6696]
[1724687238534,0.91714,2725.1,2724.7,4.86649]
[1724687238734,0.91714,2725.1,2724.7,4.4996]
[1724687238933,0.91714,2725.1,2724.7,4.8665]
[1724687239132,0.00832139,2725.2,2724.7,8.1692]
[1724687239446,0.36687,2725.0,2724.8,0.36689]
[1724687239644,0.36687,2725.0,2724.9,0.36687]
[1724687239933,0.00832139,2725.2,2725.0,0.36685]
[1724687239934,0.37515139,2725.2,2725.0,0.36685]
[1724687240136,0.00832139,2725.2,2725.1,0.36685]
[1724687240339,0.00832139,2725.2,2725.0,0.36685]
[1724687240540,0.00832139,2725.2,2725.1,0.36685]
[1724687240940,0.00832139,2725.2,2725.1,4.03645]
[1724687241134,0.37515139,2725.2,2725.1,3.6696]
[1724687241341,0.00832139,2725.2,2725.1,4.03645]
[1724687241642,0.3668,2725.5,2725.4,0.36681]
[1724687241828,0.36677,2725.7,2725.0,5.14714]
[1724687242031,0.36673,2726.0,2725.8,0.36675]
[1724687242332,0.36673,2726.0,2725.6,3.2078]
[1724687242333,0.91669,2726.4,2725.9,0.79173]
[1724687242528,0.36672,2726.1,2725.9,0.425]
[1724687242843,0.36672,2726.0,2725.9,0.425]
[1724687243133,0.37089324,2726.1,2725.9,0.425]
[1724687243339,0.36672,2726.0,2725.9,0.425]
[1724687243538,0.37089324,2726.1,2725.9,4.46054]
[1724687243836,0.36672,2726.0,2725.9,0.425]
[1724687244336,0.36672,2726.0,2725.9,4.0938]
[1724687246835,0.36672,2726.0,2725.9,3.6328]
[1724687247432,0.36672,2726.0,2725.9,7.3016]
[1724687248537,0.36672,2726.0,2725.9,3.6328]
[1724687248732,0.00417324,2726.1,2725.9,3.6328]
[1724687248733,0.00417324,2726.1,2725.9,7.3016]
[1724687249037,0.37089324,2726.1,2725.9,3.99953]
[1724687249238,0.37089324,2726.1,2726.0,0.36672]
[1724687249438,0.00417324,2726.1,2726.0,0.36672]
[1724687249639,0.00550691,2726.3,2726.2,0.3667]
[1724687249847,0.3667,2726.2,2726.1,0.3667]
[1724687250139,0.91703,2725.4,2724.6,3.21252864]
[1724687250339,0.36687,2724.9,2724.8,0.4272]
[1724687250643,0.3669,2724.7,2724.6,3.21252864]
[1724687250938,1.28416,2724.7,2724.6,3.21252864]
[1724687251329,0.3669,2724.7,2724.6,3.21252864]
[1724687253037,0.01002859,2724.9,2724.6,3.21252864]
[1724687253242,0.36689,2724.8,2724.7,0.4153]
[1724687253430,0.36689,2724.8,2724.7,4.0857]
[1724687253840,0.01002859,2724.9,2724.6,3.21252864]
[1724687254041,0.01002859,2724.9,2724.6,3.57943864]
[1724687254042,0.36689,2724.8,2724.6,3.57943864]
[1724687254445,0.37690859,2724.9,2724.6,3.21252864]
[1724687254647,0.36689,2724.8,2724.6,3.57943864]
[1724687255342,0.01002859,2724.9,2724.6,3.21252864]
[1724687255642,0.01002859,2724.9,2724.7,0.4243]
[1724687255643,0.37690859,2724.9,2724.7,0.4243]
[1724687255850,0.37690859,2724.9,2724.8,0.4536]
[1724687256237,0.3669,2724.7,2724.6,3.57942864]
[1724687256540,0.3669,2724.7,2724.6,3.21252864]
[1724687256541,1.28416,2724.7,2724.6,3.21252864]
[1724687257135,0.3669,2724.7,2724.6,3.21252864]
[1724687257332,0.3669,2724.7,2724.6,3.57943864]
[1724687257549,0.3669,2724.8,2724.7,0.3669]
[1724687257848,0.3669,2724.7,2724.6,3.21252864]
[1724687258436,1.28416,2724.7,2724.6,3.21252864]
[1724687258642,0.3669,2724.7,2724.6,3.57943864]
[1724687259147,0.3669,2724.7,2724.6,3.21252864]
[1724687259344,0.37690859,2724.9,2724.8,0.36689]
[1724687260248,0.01002859,2724.9,2724.8,0.36689]
[1724687260554,0.37689859,2724.9,2724.7,0.36689]
[1724687261250,0.37689859,2724.9,2724.8,0.36689]
[1724687261444,0.01002859,2724.9,2724.8,0.36689]
[1724687262440,0.01002859,2724.9,2724.6,3.21252864]
[1724687262441,0.37689859,2724.9,2724.7,0.36689]
[1724687263544,0.37690859,2724.9,2724.7,0.36689]
[1724687263757,0.37690859,2724.9,2724.6,3.21252864]
[1724687263758,0.01002859,2724.9,2724.8,0.36689]
[1724687264141,0.37689859,2724.9,2724.8,0.36689]
[1724687264342,0.01002859,2724.9,2724.8,0.36689]
[1724687264545,0.01002859,2724.9,2724.7,0.36689]
[1724687264752,0.37689859,2724.9,2724.8,0.36689]
[1724687265344,0.01002859,2724.9,2724.8,0.36689]
[1724687265540,0.37689859,2724.9,2724.8,0.36689]
[1724687265950,0.01002859,2724.9,2724.8,0.36689]
[1724687266451,0.37689859,2724.9,2724.8,0.36689]
[1724687266847,0.36699,2724.0,2723.3,1.32640744]
[1724687267047,0.91755,2723.9,2723.1,0.4339]
[1724687267246,0.418,2723.9,2723.1,0.4339]
[1724687267452,0.418,2723.9,2723.3,3.2078]
[1724687267753,0.91733,2724.5,2723.3,3.2078]
[1724687267946,0.36703,2723.8,2723.3,3.21225319]
[1724687268251,0.36704,2723.7,2723.6,0.00550691]
[1724687271155,0.36704,2723.7,2723.3,0.00445319]
[1724687271156,0.36707,2723.4,2723.3,0.00445319]
[1724687271658,9.03907,2723.4,2723.3,0.00445319]
[1724687273052,3.672,2723.4,2723.3,0.00445319]
[1724687273452,4.03907,2723.4,2723.3,0.00445319]
[1724687275162,3.2078,2724.2,2723.5,0.36705]
[1724687275372,3.57477,2724.2,2723.7,0.36703]
[1724687275660,0.36697,2724.2,2723.9,3.2078]
[1724687276249,4.53742,2724.6,2723.9,3.2078]
[1724687276460,0.36696,2724.3,2723.9,3.5748]
[1724687276958,0.36695,2724.4,2724.0,0.36699]
[1724687277260,0.36695,2724.4,2723.9,3.2078]
[1724687277261,0.36696,2724.3,2723.9,3.5748]
[1724687277860,3.6201,2724.6,2723.9,3.2078]
[1724687278158,0.36693,2724.5,2723.9,3.2078]
[1724687278666,0.36693,2724.5,2724.0,40.8]
[1724687278859,0.36693,2724.5,2724.1,0.36698]
[1724687279160,3.2078,2724.6,2724.2,0.4534]
[1724687279460,0.36694,2724.4,2724.2,0.4534]
[1724687279663,0.36693,2724.5,2724.2,0.82036]
[1724687279867,0.36694,2724.4,2724.2,0.4534]
[1724687280163,0.36695,2724.3,2724.2,0.4534]
[1724687280459,0.36697,2724.2,2724.1,0.414]
[1724687280863,1.28439,2724.2,2724.1,0.414]
[1724687281566,0.36697,2724.2,2724.1,0.414]
[1724687281861,4.12507,2724.7,2724.2,0.36696]
[1724687281862,0.91729,2724.6,2724.2,0.36696]
[1724687282065,0.91729,2724.6,2724.4,0.36693]
[1724687282066,0.36692,2724.6,2724.4,0.36693]
[1724687282253,0.3669,2724.8,2724.5,3.65]
[1724687282963,0.3669,2724.8,2724.6,0.36691]
[1724687283264,0.37690859,2724.9,2724.7,0.36689]
[1724687283467,0.36689,2724.8,2724.5,3.65]
[1724687283662,0.36689,2724.8,2724.5,3.65550691]
[1724687283970,0.36689,2724.8,2724.7,0.3669]
[1724687284168,0.37690859,2724.9,2724.5,3.65550691]
[1724687284354,0.36689,2724.8,2724.7,0.36689]
[1724687284557,0.01002859,2724.9,2724.5,3.65550691]
[1724687284762,0.36691,2724.6,2724.5,3.65550691]
[1724687284960,1.2842,2724.6,2724.5,3.65550691]
[1724687285554,1.2842,2724.6,2724.5,3.21330691]
[1724687285764,25.26031988,2724.6,2723.1,4.32097412]
[1724687285967,0.36702,2723.9,2723.8,0.36702]
[1724687286159,0.36702,2723.9,2723.7,0.36703]
[1724687286468,0.36701,2723.9,2723.6,0.424]
[1724687286663,0.91736,2724.4,2723.7,0.36703]
[1724687286871,0.36701,2723.9,2723.7,0.36703]
[1724687287272,0.36701,2723.9,2723.8,0.36702]
[1724687287475,0.36699,2724.1,2723.6,4.0952]
[1724687287671,0.36699,2724.1,2723.9,0.367]
[1724687287865,0.36699,2724.0,2723.9,0.367]
[1724687288174,3.2078,2724.6,2723.6,0.424]
[1724687288375,0.4427,2724.8,2724.0,3.2078]
[1724687288675,0.01002859,2724.9,2724.8,0.36689]
[1724687288866,0.01002859,2724.9,2724.4,0.4309]
[1724687289369,0.37690859,2724.9,2724.7,0.36689]
[1724687289573,0.37690859,2724.9,2724.4,0.4309]
[1724687289775,0.36689,2724.8,2724.7,0.36689]
[1724687290272,0.37690859,2724.9,2724.7,0.36689]
[1724687290576,0.01002859,2724.9,2724.7,0.36689]
[1724687290873,0.36689,2724.8,2724.7,0.36689]
[1724687291263,0.01002859,2724.9,2724.8,0.36689]
[1724687291264,0.37690859,2724.9,2724.8,0.36689]
[1724687291665,0.01002859,2724.9,2724.5,0.36691]
[1724687291965,0.01002859,2724.9,2724.4,0.4309]
[1724687291966,0.36691,2724.6,2724.4,0.4309]
[1724687292277,0.36691,2724.7,2724.5,0.36693]
[1724687292670,0.36691,2724.7,2724.5,4.03733]
[1724687292967,0.36698,2724.1,2724.0,3.57478]
[1724687293171,0.36698,2724.1,2724.0,3.2078]
[1724687293366,4.03818,2724.1,2724.0,3.2078]
[1724687294571,4.03818,2724.1,2724.0,3.57479]
[1724687294766,0.6719,2724.6,2724.0,3.57478]
[1724687294972,0.36698,2724.1,2724.0,3.57478]
[1724687295372,0.36698,2724.1,2724.0,3.57479]
[1724687295980,0.36698,2724.2,2724.1,0.36698]
[1724687296479,1.32829,2724.6,2724.0,3.2078]
[1724687296668,0.36695,2724.4,2724.3,0.36695]
[1724687296875,0.01002859,2724.9,2724.1,0.91744]
[1724687297074,0.01002859,2724.9,2724.7,0.3669]
[1724687297075,0.3669,2724.8,2724.7,0.3669]
[1724687297477,0.3669,2724.7,2724.6,0.3669]
[1724687297674,0.3669,2724.8,2724.7,0.3669]
[1724687297876,0.3669,2724.7,2724.6,0.3669]
[1724687298881,0.36696,2724.3,2724.2,0.36696]
[1724687299073,0.36697,2724.2,2724.1,0.81717]
[1724687299475,1.28439,2724.2,2724.1,0.4502]
[1724687300688,0.36697,2724.2,2724.1,0.4502]
[1724687300987,0.36703,2723.7,2723.6,3.2078]
[1724687301179,0.36702,2723.9,2723.6,3.2078]
[1724687301385,0.36701,2724.0,2723.9,0.367]
[1724687302083,0.36696,2724.3,2724.2,0.36696]
[1724687302279,0.36696,2724.3,2723.9,9.58871]
[1724687302280,0.36695,2724.4,2724.3,0.36694]
[1724687302480,0.36694,2724.5,2724.4,0.36693]
[1724687302680,0.36692,2724.6,2724.5,0.36692]
[1724687303384,0.01002859,2724.9,2724.8,0.36689]
[1724687305676,0.01002859,2724.9,2724.8,4.03649]
[1724687305883,3.30873498,2726.0,2724.9,0.91718]
[1724687306082,2.88019228,2726.3,2724.9,0.91718]
[1724687306083,0.36677,2725.7,2725.5,0.36679]
[1724687306384,0.36675,2725.8,2725.6,0.36677]
[1724687306584,0.36676,2725.8,2725.2,41.2118]
[1724687306787,2.39189498,2726.6,2725.2,41.2118]
[1724687306788,2.39189498,2726.7,2725.7,3.2078]
[1724687306983,2.39189498,2726.7,2726.2,0.36669]
[1724687306984,0.4405,2726.7,2726.2,0.36669]
[1724687307179,0.80714,2726.7,2726.3,0.36668]
[1724687307382,0.91638,2727.3,2726.6,3.2078]
[1724687307586,0.36661,2726.9,2726.6,3.2078]
[1724687307788,0.3666,2727.0,2726.6,3.2078]
[1724687308088,0.3666,2726.9,2726.6,3.2078]
[1724687308685,0.36931443,2727.0,2726.6,3.2078]
[1724687308886,0.00271443,2727.0,2726.6,3.2078]
[1724687309198,0.00271443,2727.0,2726.5,0.00550691]
[1724687309377,0.36664,2726.6,2726.5,0.00550691]
[1724687309891,4.03464,2726.6,2726.5,0.00550691]
[1724687311385,0.36676,2725.8,2725.6,0.4625]
[1724687311578,1.66567,2726.5,2725.6,0.4625]
[1724687311782,0.36674,2725.9,2725.6,0.4625]
[1724687311983,0.91672,2726.3,2725.6,0.4625]
[1724687312183,0.36675,2725.8,2725.6,0.4625]
[1724687312389,0.36674,2725.9,2725.6,0.4625]
[1724687312984,0.91672,2726.3,2725.4,3.21330691]
[1724687312985,0.91675,2726.2,2725.4,3.58010691]
[1724687313194,0.36673,2726.0,2725.4,3.21330691]
[1724687313486,0.36673,2726.0,2725.6,0.36677]
[1724687313696,0.36672,2726.1,2725.4,3.21330691]
[1724687313878,0.36671,2726.2,2725.4,3.21330691]
[1724687314082,0.91668,2726.4,2725.8,0.36674]
[1724687314281,0.36672,2726.1,2725.7,0.36676]
[1724687314684,0.36673,2726.0,2725.7,0.36676]
[1724687314881,0.36673,2726.0,2725.6,0.36677]
[1724687315086,0.749,2726.5,2725.6,0.36677]
[1724687315087,0.36674,2725.9,2725.6,0.36677]
[1724687315286,0.36674,2725.9,2725.4,3.21330691]
[1724687315287,0.36673,2726.0,2725.7,0.36676]
[1724687315783,0.91672,2726.3,2725.8,0.36674]
[1724687315784,0.36672,2726.1,2725.8,0.36674]
[1724687316689,0.36673,2726.0,2725.7,0.36676]
[1724687316889,0.36672,2726.1,2725.4,3.21330691]
[1724687317085,0.36672,2726.1,2725.8,0.36674]
[1724687317285,0.749,2726.5,2725.9,0.36674]
[1724687317590,0.36664,2726.7,2726.5,0.36665]
[1724687317783,0.00271443,2727.0,2726.6,0.36664]
[1724687317984,0.36663,2726.7,2726.5,0.36665]
[1724687318494,0.00271443,2727.0,2726.5,0.36665]
[1724687318495,0.36662,2726.8,2726.5,0.36665]
[1724687318694,5.0,2726.8,2726.0,3.2078]
[1724687318990,3.2078,2726.9,2726.0,3.2078]
[1724687319189,0.36671,2726.1,2726.0,3.2078]
[1724687319392,0.3667,2726.2,2726.0,3.2078]
[1724687319593,0.36669,2726.3,2726.1,0.3667]
[1724687320588,0.36669,2726.3,2726.2,0.3667]
[1724687321189,0.91657,2726.8,2726.2,3.668]
[1724687321394,3.2078,2726.9,2726.1,0.8686]
[1724687321595,0.36664,2726.7,2726.6,0.36664]
[1724687321995,0.36664,2726.6,2726.5,0.36665]
[1724687322194,0.36668,2726.4,2726.3,0.36667]
[1724687322492,0.36668,2726.4,2726.3,0.36668]
[1724687322695,0.36668,2726.4,2726.3,4.03468]
[1724687323690,3.2078,2726.9,2726.2,0.4431]
[1724687323891,0.36669,2726.3,2726.2,0.36669]
[1724687324295,1.28345,2726.2,2726.1,0.4243]
[1724687324497,0.36672,2726.0,2725.9,0.36673]
[1724687324796,0.36672,2726.1,2726.0,0.36672]
[1724687324998,0.3667,2726.3,2726.2,0.3667]
[1724687325892,0.3667,2726.2,2725.9,3.2078]
[1724687326194,0.3667,2726.2,2726.1,0.3667]
[1724687326591,0.36669,2726.3,2726.2,0.36669]
[1724687326993,0.3667,2726.2,2726.1,0.3667]
[1724687327497,0.36672,2726.0,2725.4,0.92250691]
[1724687327793,4.58477,2726.2,2725.4,0.92250691]
[1724687327794,0.36672,2726.1,2725.9,0.36673]
[1724687328797,0.91668,2726.4,2726.0,0.36672]
[1724687328798,0.9167,2726.4,2726.0,0.36672]
[1724687329095,0.3667,2726.2,2725.8,0.4421]
[1724687329302,0.3667,2726.2,2726.0,0.36672]
[1724687329598,0.36671,2726.2,2726.0,0.36672]
[1724687330193,0.36671,2726.1,2726.0,0.36672]
[1724687331099,0.36671,2726.1,2725.9,0.36673]
[1724687331403,0.36673,2726.0,2725.8,0.80884]
[1724687331597,0.91665,2726.5,2725.8,0.4421]
[1724687331793,0.9167,2726.4,2726.0,0.36672]
[1724687331994,0.36669,2726.3,2725.8,0.4421]
[1724687332293,0.36666,2726.5,2726.3,0.36667]
[1724687332488,0.36666,2726.5,2726.4,0.4616]
[1724687332692,0.36666,2726.5,2726.4,0.8456]
[1724687333405,0.36666,2726.5,2726.4,4.0534]
[1724687333591,0.91656,2726.8,2726.5,0.36666]
[1724687333797,0.91656,2726.8,2726.4,4.42006]
[1724687333994,0.36666,2726.5,2726.4,4.42006]
[1724687334295,0.36666,2726.5,2726.4,4.0534]
[1724687335903,0.36666,2726.5,2726.4,4.42007]
[1724687336105,0.36666,2726.5,2726.4,4.0534]
[1724687338402,0.36666,2726.5,2726.4,4.42007]
[1724687338699,0.36666,2726.5,2726.4,4.0534]
[1724687340001,0.36666,2726.5,2726.4,4.42007]
[1724687340199,0.36664,2726.7,2726.6,0.36663]
[1724687340499,0.00271443,2727.0,2726.4,8.63727]
[1724687340694,0.00271443,2727.0,2726.8,0.3666]
[1724687340695,0.36661,2726.9,2726.8,0.3666]
[1724687341701,0.36662,2726.8,2726.7,3.94212]
[1724687342200,1.28317,2726.8,2726.7,7.2427]
[1724687342400,1.28317,2726.8,2726.7,3.2078]
[1724687342607,0.36665,2726.6,2726.5,0.36664]
[1724687343500,0.36664,2726.7,2726.6,0.36663]
[1724687343707,0.91921443,2727.0,2726.7,0.36662]
[1724687343913,0.00550691,2727.1,2726.4,0.8456]
[1724687344109,0.3843,2728.3,2727.4,4.23]
[1724687344610,0.3843,2728.3,2727.4,0.36653]
[1724687344611,0.91614,2728.1,2727.4,0.36653]
[1724687344805,0.36646,2728.0,2727.7,0.36649]
[1724687345004,0.37103968,2728.0,2727.7,0.36999402]
[1724687345499,0.00457968,2728.0,2727.7,0.00350402]
[1724687345699,0.00457968,2728.0,2727.7,0.36999402]
[1724687345906,0.00457968,2728.0,2727.7,0.00350402]
[1724687345907,0.37104968,2728.0,2727.7,0.00350402]
[1724687346101,0.37103968,2728.0,2727.7,0.00350402]
[1724687346605,0.36648,2727.9,2727.7,0.00350402]
[1724687348705,0.36648,2727.8,2727.7,0.00350402]
[1724687348901,0.36648,2727.9,2727.7,0.00350402]
[1724687349412,0.37103968,2728.0,2727.7,0.37000402]
[1724687349604,0.00457968,2728.0,2727.9,0.36647]
[1724687349808,0.00457968,2728.0,2727.9,4.03207]
[1724687355008,0.00550691,2728.1,2728.0,0.36646]
[1724687355211,0.36638,2728.6,2728.0,9.03206]
[1724687355402,0.36638,2728.6,2728.4,0.36639]
[1724687356002,0.37088662,2728.6,2728.4,0.36639]
[1724687356203,0.36639,2728.5,2728.4,0.36639]
[1724687356398,0.37088662,2728.6,2728.2,4.23]
[1724687356603,0.36639,2728.5,2728.4,0.36639]
[1724687356816,0.36639,2728.5,2728.2,4.23]
[1724687356817,0.36639,2728.5,2728.3,0.36641]
[1724687357005,0.00450662,2728.6,2728.3,0.36641]
[1724687357207,0.3664,2728.4,2728.3,0.36641]
[1724687358614,0.3664,2728.4,2728.2,4.59641]
[1724687358801,0.3664,2728.4,2728.3,0.36641]
[1724687359001,0.3664,2728.5,2728.3,0.36641]
[1724687359414,0.3664,2728.4,2728.3,0.36641]
[1724687359805,0.3664,2728.5,2728.2,4.23]
[1724687360103,0.3664,2728.5,2728.4,0.3664]
[1724687360304,0.00450662,2728.6,2728.5,0.36639]
[1724687360501,0.00450662,2728.6,2728.5,3.57419]
[1724687361114,0.00550691,2728.8,2728.7,0.36636]
[1724687362115,0.00891699,2728.8,2728.7,0.36636]
[1724687364504,0.91591,2728.7,2728.5,3.2078]
[1724687364704,0.91591,2728.7,2727.7,3.58470402]
[1724687364705,0.91603,2728.4,2727.7,3.58470402]
[1724687364906,0.91601,2728.4,2727.8,0.36648]
[1724687365114,0.3778,2728.5,2727.8,0.36647]
[1724687365316,0.36641,2728.4,2727.7,3.58470402]
[1724687365642,0.36642,2728.3,2728.1,3.2078]
[1724687365815,0.38,2728.6,2728.1,3.2078]
[1724687366111,0.36639,2728.5,2728.4,3.2078]
[1724687367414,4.94717,2728.5,2728.4,3.2078]
[1724687367719,4.03119,2728.5,2728.4,3.2078]
[1724687368309,3.6648,2728.5,2728.4,3.2078]
[1724687368516,0.36638,2728.6,2728.4,3.2078]
[1724687368731,0.36639,2728.5,2728.4,3.2078]
[1724687369120,0.36638,2728.6,2728.4,3.2078]
[1724687369313,0.36638,2728.6,2728.5,0.3831]
[1724687369523,0.36639,2728.5,2728.4,3.2078]
[1724687370224,0.36638,2728.6,2728.4,3.2078]
[1724687370524,0.36111699,2728.8,2728.4,3.2078]
[1724687370525,0.36639,2728.5,2728.4,3.2078]
[1724687371831,0.36638,2728.6,2728.4,3.5742]